[Event "Czech Juniors Girls 2024"]
[Site "Jaromerice nad Rokytnou"]
[Date "2024.03.13"]
[Round "5.2"]
[White "Sulcova, Tereza Radmila"]
[Black "Nagyova, Daniela"]
[Result "1-0"]
[ECO "C90"]
[WhiteElo "1835"]
[BlackElo "1927"]
[Annotator "RC"]
[PlyCount "93"]
[EventDate "2024.03.10"]
[EventType "tourn"]
[EventCountry "CZE"]
[SourceTitle "playchess.com"]
[Source "ChessBase"]
[SourceQuality "1"]
[WhiteTeam "Czech Republic"]
[BlackTeam "Czech Republic"]
[WhiteTeamCountry "CZE"]
[BlackTeamCountry "CZE"]
[TimeControl "40/5400+30:1800+30"]

1. e4 {[%emt 0:00:06]} e5 {[%emt 0:00:13]} 2. Nf3 {[%emt 0:00:28]} Nc6 {[%emt 0:00:13]} 3. Bc4 {[%emt 0:00:28]} Be7 {[%emt 0:00:49]} 4. O-O {[%emt 0:02:26]} Nf6 {[%emt 0:01:02]} 5. d3 {[%emt 0:05:28]} d6 {[%emt 0:02:20]} 6. c3 {[%emt 0:08:39]} O-O {[%emt 0:02:03]} 7. Nbd2 {[%emt 0:06:07]} Na5 {[%emt 0:03:13]} 8. Bb5 {[%emt 0:00:32]} a6 {[%emt 0:00:48]} 9. Ba4 {[%emt 0:00:42]} b5 {[%emt 0:00:17]} 10. Bc2 {[%emt 0:00:19]} c5 {[%emt 0:01:35]} 11. d4 {[%emt 0:03:04]} Qc7 {[%emt 0:08:29]} 12. Re1 {[%emt 0:04:47]} c4 {[%emt 0:07:26]} 13. Nf1 {[%emt 0:04:24]} h6 {[%emt 0:06:19]} 14. Ne3 {[%emt 0:04:15]} Re8 {[%emt 0:05:14]} 15. Nd5 {[%emt 0:12:35]} Nxd5 {[%emt 0:05:43]} 16. exd5 {[%emt 0:00:07]} Bg4 {[%emt 0:04:43]} 17. dxe5 {[%emt 0:07:05]} dxe5 {[%emt 0:02:19]} 18. h3 {[%emt 0:01:31]} Bxf3 {[%emt 0:03:35]} 19. Qxf3 {[%emt 0:00:18]} Bf8 {[%emt 0:03:05]} 20. h4 {[%emt 0:09:51]} Rad8 {[%emt 0:06:48]} 21. h5 {[%emt 0:02:02]} Rd6 {[%emt 0:03:20]} 22. Qe4 {[%emt 0:03:36]} g6 {[%emt 0:01:45]} 23. hxg6 {[%emt 0:00:10]} fxg6 {[%emt 0:00:40]} 24. Re3 {[%emt 0:01:44]} Kh7 {[%emt 0:05:09]} 25. Rg3 {[%emt 0:01:00]} Qf7 {[%emt 0:02:22]} 26. Be3 {[%emt 0:04:44]} Nb7 {[%emt 0:04:00]} 27. Rd1 {[%emt 0:02:10]} Rf6 {[%emt 0:01:53]} 28. Qh4 {[%emt 0:05:39]} Nd6 {[%emt 0:03:04]} 29. Rh3 {[%emt 0:03:58]} Nf5 {[%emt 0:02:23]} 30. Qe4 {[%emt 0:00:23]} Nxe3 {[%emt 0:04:21]} 31. Qxe3 {[%emt 0:00:05]} Qc7 {[%emt 0:02:14]} 32. Rd2 {[%emt 0:03:02]} Qc5 {[%emt 0:02:33]} 33. Rxh6+ {[%emt 0:01:52]} Bxh6 {[%emt 0:00:26]} 34. Qxc5 {[%emt 0:00:04]} Bxd2 {[%emt 0:00:13]} 35. Qc7+ {[%emt 0:00:08]} Kh6 {[%emt 0:01:04]} 36. d6 {[%emt 0:00:26]} Rff8 {[%emt 0:00:59]} 37. d7 {[%emt 0:00:32]} Rd8 {[%emt 0:00:25]} 38. Qb6 {[%emt 0:00:07]} e4 {[%emt 0:01:37]} 39. Bxe4 {[%emt 0:01:17]} Kg5 {[%emt 0:00:56]} 40. Qxg6+ {[%emt 0:00:40]} Kf4 {[%emt 0:00:05]} 41. Bc6 {[%emt 0:30:31]} Ke5 {[%emt 0:33:03]} 42. Qe4+ {[%emt 0:02:46]} Kd6 {[%emt 0:00:24]} 43. Qd5+ {[%emt 0:00:58]} Kc7 {[%emt 0:00:09]} 44. Qc5 {[%emt 0:00:00]} b4 {[%emt 0:00:00]} 45. Bd5+ {[%emt 0:00:00]} Kxd7 {[%emt 0:00:00]} 46. Qc6+ {[%emt 0:00:00]} Ke7 {[%emt 0:00:00]} 47. Qe6# {[%emt 0:00:00]} 1-0

[Event "Czech Juniors Girls 2024"]
[Site "Jaromerice nad Rokytnou"]
[Date "2024.03.13"]
[Round "5.3"]
[White "Jakubse, Tamae Severina"]
[Black "Fizerova, Lucie"]
[Result "0-1"]
[ECO "B22"]
[WhiteElo "1861"]
[BlackElo "1886"]
[Annotator "NA RC"]
[PlyCount "64"]
[EventDate "2024.03.10"]
[EventType "tourn"]
[EventCountry "CZE"]
[SourceTitle "playchess.com"]
[Source "ChessBase"]
[SourceQuality "1"]
[WhiteTeam "Czech Republic"]
[BlackTeam "Czech Republic"]
[WhiteTeamCountry "CZE"]
[BlackTeamCountry "CZE"]
[TimeControl "40/5400+30:1800+30"]

1. e4 {[%emt 0:00:03]} c5 {[%emt 0:00:08]} 2. c3 {[%emt 0:00:06]} d5 {[%emt 0:00:04]} 3. exd5 {[%emt 0:00:05]} Qxd5 {[%emt 0:00:07]} 4. d4 {[%emt 0:00:06]} Nf6 {[%emt 0:00:10]} 5. Nf3 {[%emt 0:00:06]} e6 {[%emt 0:00:12]} 6. Na3 {[%emt 0:00:07]} Qd8 {[%emt 0:00:13]} 7. Nc4 {[%emt 0:00:35]} Nc6 {[%emt 0:00:25]} 8. Be3 {[%emt 0:00:14] B22: Sicilian: 2 c3.} Nd5 {[%emt 0:00:38] The main line 8...Nd5 scores better than 8...cxd4.} 9. Bd3 {[%emt 0:00:47]} Be7 {[%emt 0:01:28]} 10. dxc5 {[%emt 0:00:15]} Nxe3 {[%emt 0:01:17]} 11. Nxe3 {[%emt 0:00:07]} Bxc5 {[%emt 0:01:04]} 12. Qe2 {[%emt 0:00:15]} O-O {[%emt 0:03:25]} 13. O-O-O {[%emt 0:00:05]} Qe7 {[%emt 0:01:40]} 14. h4 $146 {[%emt 0:01:42]} ({Predecessor:} 14. Kb1 a6 15. h4 f5 16. Nc4 b5 17. Nce5 Nxe5 18. Nxe5 Bb7 19. f3 Rad8 20. h5 {½-½ Ortiz Sanchez,L (1871)-Burrows,M (2087) Leamington Spa 4NCL op-A 28th 2022 (3)}) 14... h6 {[%emt 0:09:07]} 15. g4 {[%emt 0:12:05]} g6 {[%emt 0:04:29]} 16. Nd2 {[%emt 0:16:57]} Ne5 {[%emt 0:05:02]} 17. Bc2 {[%emt 0:03:52]} b5 {[%emt 0:05:23]} 18. Rdg1 $2 {[%emt 0:04:05]} (18. f4 $16 Bxe3 19. Qxe3 (19. fxe5 Bxd2+ 20. Qxd2 Bb7 $16) 19... Nxg4 20. Qf3) 18... Bb7 {[%emt 0:06:03]} 19. Rh3 {[%emt 0:01:34]} Rfd8 {[%emt 0:02:40]} 20. f4 {[%emt 0:04:35] [#]} Rxd2 $1 {[%emt 0:03:06]} 21. Qxd2 {[%emt 0:05:08]} Nf3 {[%emt 0:03:24]} 22. Rxf3 {[%emt 0:00:10]} Bxf3 {[%emt 0:00:03]} 23. Rg3 {[%emt 0:10:22]} (23. Qf2 $142 Bc6 24. Kb1) 23... Rd8 {[%emt 0:02:37]} 24. Qf2 {[%emt 0:00:22]} Bc6 {[%emt 0:02:08]} 25. Rg1 {[%emt 0:06:51]} a5 {[%emt 0:05:48]} 26. Re1 {[%emt 0:03:29]} b4 {[%emt 0:02:28]} 27. c4 {[%emt 0:03:00]} a4 {[%emt 0:04:26]} 28. g5 {[%emt 0:03:44]} h5 {[%emt 0:02:59]} 29. Qg3 {[%emt 0:00:49]} Qa7 {[%emt 0:02:42]} 30. Re2 {[%emt 0:03:51] [#]} b3 $19 {[%emt 0:01:28]} 31. axb3 {[%emt 0:02:36]} axb3 {[%emt 0:01:42]} 32. Bb1 {[%emt 0:00:59]} Qa1 {[%emt 0:00:30]} 0-1

[Event "Czech Juniors Girls 2024"]
[Site "Jaromerice nad Rokytnou"]
[Date "2024.03.13"]
[Round "5.4"]
[White "Nespora, Tatana"]
[Black "Voriskova, Anna"]
[Result "0-1"]
[ECO "B21"]
[WhiteElo "1839"]
[BlackElo "1999"]
[Annotator "RC"]
[PlyCount "76"]
[EventDate "2024.03.10"]
[EventType "tourn"]
[EventCountry "CZE"]
[SourceTitle "playchess.com"]
[Source "ChessBase"]
[SourceQuality "1"]
[WhiteTeam "Czech Republic"]
[BlackTeam "Czech Republic"]
[WhiteTeamCountry "CZE"]
[BlackTeamCountry "CZE"]
[TimeControl "40/5400+30:1800+30"]

1. e4 {[%emt 0:00:13]} c5 {[%emt 0:00:10]} 2. d4 {[%emt 0:00:13]} cxd4 {[%emt 0:00:33]} 3. c3 {[%emt 0:00:34]} dxc3 {[%emt 0:00:31]} 4. Nxc3 {[%emt 0:00:20]} Nc6 {[%emt 0:00:55]} 5. Nf3 {[%emt 0:00:31]} e6 {[%emt 0:01:11]} 6. Bf4 {[%emt 0:01:00]} a6 {[%emt 0:02:39]} 7. h4 {[%emt 0:03:20]} Bb4 {[%emt 0:14:14]} 8. Qc2 {[%emt 0:04:38]} Qa5 {[%emt 0:17:18]} 9. Be2 {[%emt 0:05:11]} Nge7 {[%emt 0:03:48]} 10. O-O {[%emt 0:09:59]} O-O {[%emt 0:02:45]} 11. Bd2 {[%emt 0:14:24]} Qd8 {[%emt 0:05:42]} 12. a3 {[%emt 0:06:30]} Bd6 {[%emt 0:04:59]} 13. Ng5 {[%emt 0:08:29]} f5 {[%emt 0:07:37]} 14. exf5 {[%emt 0:10:38]} Nxf5 {[%emt 0:00:10]} 15. Nce4 {[%emt 0:00:40]} Be7 {[%emt 0:02:49]} 16. g4 {[%emt 0:03:42]} Ncd4 {[%emt 0:02:16]} 17. Qd3 {[%emt 0:01:30]} Nxe2+ {[%emt 0:00:17]} 18. Qxe2 {[%emt 0:00:08]} Nxh4 {[%emt 0:02:15]} 19. Qd3 {[%emt 0:00:48]} Ng6 {[%emt 0:03:25]} 20. f4 {[%emt 0:14:29]} d5 {[%emt 0:03:47]} 21. Ng3 {[%emt 0:02:35]} Bd7 {[%emt 0:04:58]} 22. Nh5 {[%emt 0:02:26]} Qb6+ {[%emt 0:02:12]} 23. Rf2 {[%emt 0:03:25]} Bxg5 {[%emt 0:00:25]} 24. Be3 {[%emt 0:00:42]} Qb5 {[%emt 0:01:31]} 25. Qxb5 {[%emt 0:02:11]} Bxb5 {[%emt 0:00:01]} 26. fxg5 {[%emt 0:00:11]} Rxf2 {[%emt 0:00:09]} 27. Kxf2 {[%emt 0:00:17]} Rf8+ {[%emt 0:00:28]} 28. Kg3 {[%emt 0:00:05]} e5 {[%emt 0:01:13]} 29. Rc1 {[%emt 0:01:02]} Bc6 {[%emt 0:00:01]} 30. Bc5 {[%emt 0:00:53]} Rf7 {[%emt 0:00:52]} 31. Re1 {[%emt 0:00:22]} d4 {[%emt 0:00:45]} 32. Bd6 {[%emt 0:00:43]} Rf3+ {[%emt 0:00:43]} 33. Kh2 {[%emt 0:00:13]} d3 {[%emt 0:02:36]} 34. Rd1 {[%emt 0:02:09]} Rf2+ {[%emt 0:00:22]} 35. Kh3 {[%emt 0:00:44]} e4 {[%emt 0:00:47]} 36. Bc5 {[%emt 0:00:25]} Rf3+ {[%emt 0:01:22]} 37. Kh2 {[%emt 0:00:11]} Ba4 {[%emt 0:00:45]} 38. Rd2 {[%emt 0:00:12]} Ne5 {[%emt 0:01:01]} 0-1

[Event "Czech Juniors Girls 2024"]
[Site "Jaromerice nad Rokytnou"]
[Date "2024.03.13"]
[Round "5.5"]
[White "Zelbova, Lada"]
[Black "Petirova, Iva"]
[Result "1-0"]
[ECO "A48"]
[WhiteElo "1954"]
[BlackElo "1846"]
[Annotator "RC"]
[PlyCount "107"]
[EventDate "2024.03.10"]
[EventType "tourn"]
[EventCountry "CZE"]
[SourceTitle "playchess.com"]
[Source "ChessBase"]
[SourceQuality "1"]
[WhiteTeam "Czech Republic"]
[BlackTeam "Czech Republic"]
[WhiteTeamCountry "CZE"]
[BlackTeamCountry "CZE"]
[TimeControl "40/5400+30:1800+30"]

1. d4 {[%emt 0:00:04]} Nf6 {[%emt 0:00:10]} 2. Nf3 {[%emt 0:00:06]} g6 {[%emt 0:00:16]} 3. Bg5 {[%emt 0:00:39]} d6 {[%emt 0:01:51]} 4. Nbd2 {[%emt 0:00:34]} Nbd7 {[%emt 0:02:43]} 5. c3 {[%emt 0:01:01]} Bg7 {[%emt 0:02:37]} 6. e4 {[%emt 0:00:16]} h6 {[%emt 0:02:03]} 7. Bh4 {[%emt 0:00:55]} g5 {[%emt 0:01:45]} 8. Bg3 {[%emt 0:00:21]} Nh5 {[%emt 0:01:52]} 9. Bd3 {[%emt 0:05:56]} e5 {[%emt 0:06:54]} 10. dxe5 {[%emt 0:05:18]} Nxe5 {[%emt 0:04:54]} 11. Nxe5 {[%emt 0:00:55]} dxe5 {[%emt 0:01:34]} 12. Bb5+ {[%emt 0:02:13]} c6 {[%emt 0:00:10]} 13. Bxc6+ {[%emt 0:00:47]} bxc6 {[%emt 0:00:04]} 14. Qxh5 {[%emt 0:00:20]} Ba6 {[%emt 0:03:05]} 15. Qf3 {[%emt 0:05:34]} h5 {[%emt 0:04:50]} 16. h3 {[%emt 0:03:25]} Rb8 {[%emt 0:04:39]} 17. b3 {[%emt 0:02:16]} h4 {[%emt 0:13:59]} 18. Bh2 {[%emt 0:00:34]} O-O {[%emt 0:01:11]} 19. Qe3 {[%emt 0:03:20]} f5 {[%emt 0:07:13]} 20. c4 {[%emt 0:02:03]} f4 {[%emt 0:16:52]} 21. Qe2 {[%emt 0:00:46]} Qf6 {[%emt 0:02:10]} 22. O-O {[%emt 0:01:46]} Rbd8 {[%emt 0:01:27]} 23. Rfd1 {[%emt 0:02:15]} Bc8 {[%emt 0:00:48]} 24. f3 {[%emt 0:02:01]} Rd4 {[%emt 0:00:42]} 25. Kh1 {[%emt 0:01:10]} Rfd8 {[%emt 0:02:12]} 26. Bg1 {[%emt 0:01:08]} Qd6 {[%emt 0:03:37]} 27. Bxd4 {[%emt 0:01:18]} exd4 {[%emt 0:00:04]} 28. Qd3 {[%emt 0:01:33]} Qb4 {[%emt 0:02:13]} 29. Rdc1 {[%emt 0:01:45]} Qa3 {[%emt 0:02:37]} 30. e5 {[%emt 0:07:10]} Qf8 {[%emt 0:05:28]} 31. Qg6 {[%emt 0:03:17]} Qf5 {[%emt 0:01:41]} 32. Qxf5 {[%emt 0:01:30]} Bxf5 {[%emt 0:00:06]} 33. Re1 {[%emt 0:03:57]} Kf7 {[%emt 0:00:23]} 34. Ne4 {[%emt 0:02:19]} Bxe4 {[%emt 0:01:45]} 35. Rxe4 {[%emt 0:01:05]} Ke6 {[%emt 0:00:38]} 36. Rd1 {[%emt 0:00:54]} d3 {[%emt 0:00:58]} 37. Rd2 {[%emt 0:00:45]} Bf8 {[%emt 0:00:29]} 38. Kg1 {[%emt 0:03:05]} Bc5+ {[%emt 0:01:02]} 39. Kf1 {[%emt 0:01:08]} Be3 {[%emt 0:00:30]} 40. Rd1 {[%emt 0:02:06]} a5 {[%emt 0:00:40]} 41. c5 {[%emt 0:38:02]} Rd5 {[%emt 0:04:03]} 42. Rc4 {[%emt 0:00:00]} Bxc5 {[%emt 0:09:21]} 43. Rc3 {[%emt 0:00:00]} d2 {[%emt 0:03:28]} 44. Rc2 {[%emt 0:00:00]} Bb4 {[%emt 0:01:42]} 45. a3 {[%emt 0:00:00]} Bxa3 {[%emt 0:01:15]} 46. Rdxd2 {[%emt 0:00:00]} Rxe5 {[%emt 0:00:57]} 47. Re2 {[%emt 0:00:00]} c5 {[%emt 0:00:57]} 48. Rxe5+ {[%emt 0:00:00]} Kxe5 {[%emt 0:00:05]} 49. Ke2 {[%emt 0:00:00]} Kd4 {[%emt 0:02:11]} 50. Rc4+ {[%emt 0:00:00]} Kd5 {[%emt 0:00:05]} 51. Kd3 {[%emt 0:00:00]} Bb4 {[%emt 0:01:14]} 52. Re4 {[%emt 0:00:00]} Kc6 {[%emt 0:03:26]} 53. Kc4 {[%emt 0:00:00]} Kd6 {[%emt 0:00:37]} 54. Re8 {[%emt 0:00:00]} 1-0

[Event "Czech Juniors Girls 2024"]
[Site "Jaromerice nad Rokytnou"]
[Date "2024.03.13"]
[Round "6.1"]
[White "Trasakova, Adela"]
[Black "Petirova, Iva"]
[Result "1/2-1/2"]
[ECO "A49"]
[WhiteElo "1935"]
[BlackElo "1846"]
[Annotator "RC"]
[PlyCount "61"]
[EventDate "2024.03.10"]
[EventType "tourn"]
[EventCountry "CZE"]
[SourceTitle "playchess.com"]
[Source "ChessBase"]
[SourceQuality "1"]
[WhiteTeam "Czech Republic"]
[BlackTeam "Czech Republic"]
[WhiteTeamCountry "CZE"]
[BlackTeamCountry "CZE"]
[TimeControl "40/5400+30:1800+30"]

1. d4 {[%emt 0:00:03]} Nf6 {[%emt 0:00:09]} 2. Nf3 {[%emt 0:00:08]} g6 {[%emt 0:00:10]} 3. g3 {[%emt 0:00:06]} Bg7 {[%emt 0:00:06]} 4. Bg2 {[%emt 0:00:10]} O-O {[%emt 0:00:13]} 5. O-O {[%emt 0:00:06]} d6 {[%emt 0:00:06]} 6. b3 {[%emt 0:00:12]} e5 {[%emt 0:00:34]} 7. dxe5 {[%emt 0:00:46]} dxe5 {[%emt 0:00:07]} 8. Bb2 {[%emt 0:07:37]} e4 {[%emt 0:01:05]} 9. Ne5 {[%emt 0:11:39]} Ng4 {[%emt 0:03:42]} 10. Nc4 {[%emt 0:01:08]} Bxb2 {[%emt 0:02:27]} 11. Qxd8 {[%emt 0:05:45]} Rxd8 {[%emt 0:00:06]} 12. Nxb2 {[%emt 0:00:08]} f5 {[%emt 0:04:24]} 13. e3 {[%emt 0:04:01]} Nc6 {[%emt 0:00:37]} 14. Na3 {[%emt 0:01:21]} a6 {[%emt 0:00:28]} 15. Rad1 {[%emt 0:01:02]} Be6 {[%emt 0:00:15]} 16. Na4 {[%emt 0:04:44]} b6 {[%emt 0:01:33]} 17. Nc3 {[%emt 0:06:34]} Nb4 {[%emt 0:05:29]} 18. Rfe1 {[%emt 0:03:30]} Ne5 {[%emt 0:01:46]} 19. Kf1 {[%emt 0:10:16]} Kf7 {[%emt 0:02:37]} 20. h3 {[%emt 0:04:28]} h5 {[%emt 0:01:59]} 21. Rxd8 {[%emt 0:02:14]} Rxd8 {[%emt 0:00:07]} 22. Rc1 {[%emt 0:01:37]} Ke7 {[%emt 0:02:13]} 23. Nab1 {[%emt 0:00:54]} Rd7 {[%emt 0:04:36]} 24. a3 {[%emt 0:02:32]} Nd5 {[%emt 0:01:31]} 25. Ke2 {[%emt 0:02:55]} Nxc3+ {[%emt 0:01:28]} 26. Nxc3 {[%emt 0:00:15]} Bf7 {[%emt 0:02:53]} 27. Rd1 {[%emt 0:08:09]} Rxd1 {[%emt 0:00:21]} 28. Nxd1 {[%emt 0:00:28]} Kd6 {[%emt 0:00:18]} 29. Kd2 {[%emt 0:00:35]} c5 {[%emt 0:01:35]} 30. Kc3 {[%emt 0:02:08]} b5 {[%emt 0:04:34]} 31. h4 {[%emt 0:05:38]} 1/2-1/2

[Event "Czech Juniors Girls 2024"]
[Site "Jaromerice nad Rokytnou"]
[Date "2024.03.13"]
[Round "6.2"]
[White "Voriskova, Anna"]
[Black "Zelbova, Lada"]
[Result "0-1"]
[ECO "B21"]
[WhiteElo "1999"]
[BlackElo "1954"]
[Annotator "RC"]
[PlyCount "78"]
[EventDate "2024.03.10"]
[EventType "tourn"]
[EventCountry "CZE"]
[SourceTitle "playchess.com"]
[Source "ChessBase"]
[SourceQuality "1"]
[WhiteTeam "Czech Republic"]
[BlackTeam "Czech Republic"]
[WhiteTeamCountry "CZE"]
[BlackTeamCountry "CZE"]
[TimeControl "40/5400+30:1800+30"]

1. e4 {[%emt 0:00:03]} c5 {[%emt 0:00:06]} 2. d4 {[%emt 0:00:08]} cxd4 {[%emt 0:00:18]} 3. c3 {[%emt 0:00:07]} dxc3 {[%emt 0:00:26]} 4. Nxc3 {[%emt 0:00:08]} d6 {[%emt 0:00:19]} 5. Nf3 {[%emt 0:01:19]} Nc6 {[%emt 0:00:28]} 6. Bc4 {[%emt 0:02:04]} e6 {[%emt 0:01:14]} 7. Bf4 {[%emt 0:01:25]} Be7 {[%emt 0:09:01]} 8. Nb5 {[%emt 0:18:01]} e5 {[%emt 0:06:37]} 9. Bg5 {[%emt 0:21:20]} a6 {[%emt 0:02:21]} 10. Bxe7 {[%emt 0:03:22]} Kxe7 {[%emt 0:02:03]} 11. Nc3 {[%emt 0:00:36]} Be6 {[%emt 0:01:44]} 12. Bd5 {[%emt 0:06:23]} Nf6 {[%emt 0:02:40]} 13. O-O {[%emt 0:00:43]} Re8 {[%emt 0:09:55]} 14. Qd2 {[%emt 0:03:18]} Kf8 {[%emt 0:04:26]} 15. Bxe6 {[%emt 0:03:07]} fxe6 {[%emt 0:04:53]} 16. Rad1 {[%emt 0:00:11]} Ke7 {[%emt 0:01:11]} 17. Qg5 {[%emt 0:03:34]} Rg8 {[%emt 0:00:44]} 18. Rd2 {[%emt 0:01:12]} Qc7 {[%emt 0:00:45]} 19. Rfd1 {[%emt 0:00:25]} Rad8 {[%emt 0:00:36]} 20. Qh4 {[%emt 0:06:31]} h6 {[%emt 0:09:37]} 21. g4 {[%emt 0:01:52]} Qd7 {[%emt 0:06:08]} 22. g5 {[%emt 0:01:04]} hxg5 {[%emt 0:00:54]} 23. Qxg5 {[%emt 0:00:42]} Qe8 {[%emt 0:00:50]} 24. Kf1 {[%emt 0:11:26]} Qh5 {[%emt 0:00:32]} 25. Qe3 {[%emt 0:00:21]} Rd7 {[%emt 0:03:46]} 26. Ne2 {[%emt 0:03:37]} Ng4 {[%emt 0:06:18]} 27. Qa3 {[%emt 0:02:42]} Nxh2+ {[%emt 0:01:16]} 28. Nxh2 {[%emt 0:00:11]} Qxh2 {[%emt 0:00:27]} 29. Rxd6 {[%emt 0:00:59]} Qh1+ {[%emt 0:00:53]} 30. Ng1 {[%emt 0:00:14]} Rxd6 {[%emt 0:00:37]} 31. Qxd6+ {[%emt 0:00:30]} Kf6 {[%emt 0:00:53]} 32. Re1 {[%emt 0:04:21]} g5 {[%emt 0:04:37]} 33. Qa3 {[%emt 0:03:13]} Nd4 {[%emt 0:00:58]} 34. Qd3 {[%emt 0:00:24]} g4 {[%emt 0:01:36]} 35. Qg3 {[%emt 0:00:49]} Nf3 {[%emt 0:01:31]} 36. Rd1 {[%emt 0:00:45]} Rc8 {[%emt 0:05:34]} 37. Ke2 {[%emt 0:01:17]} Nxg1+ {[%emt 0:02:07]} 38. Rxg1 {[%emt 0:00:01]} Qxe4+ {[%emt 0:00:43]} 39. Kd2 {[%emt 0:00:39]} Rc2+ {[%emt 0:00:22]} 0-1

[Event "Czech Juniors Girls 2024"]
[Site "Jaromerice nad Rokytnou"]
[Date "2024.03.13"]
[Round "6.3"]
[White "Fizerova, Lucie"]
[Black "Nespora, Tatana"]
[Result "1/2-1/2"]
[ECO "B31"]
[WhiteElo "1886"]
[BlackElo "1839"]
[Annotator "NA RC"]
[PlyCount "72"]
[EventDate "2024.03.10"]
[EventType "tourn"]
[EventCountry "CZE"]
[SourceTitle "playchess.com"]
[Source "ChessBase"]
[SourceQuality "1"]
[WhiteTeam "Czech Republic"]
[BlackTeam "Czech Republic"]
[WhiteTeamCountry "CZE"]
[BlackTeamCountry "CZE"]
[TimeControl "40/5400+30:1800+30"]

1. e4 {[%emt 0:00:04]} c5 {[%emt 0:00:17]} 2. Nf3 {[%emt 0:00:16]} Nc6 {[%emt 0:00:19]} 3. Bb5 {[%emt 0:00:09]} g6 {[%emt 0:00:37]} 4. O-O {[%emt 0:00:11]} Bg7 {[%emt 0:00:28]} 5. Re1 {[%emt 0:00:23]} e5 {[%emt 0:01:38]} 6. Bxc6 {[%emt 0:00:18]} dxc6 {[%emt 0:00:13]} 7. a4 {[%emt 0:00:13] B31: Sicilian: 2...Nc6 3 Bb5 g6.} a5 {[%emt 0:02:04]} 8. Na3 {[%emt 0:01:32]} Qc7 {[%emt 0:04:27]} 9. d3 {[%emt 0:00:54]} Nf6 {[%emt 0:01:28]} 10. Nc4 {[%emt 0:02:50]} Nd7 {[%emt 0:01:23]} 11. Be3 {[%emt 0:01:10]} O-O {[%emt 0:02:42]} 12. Qc1 {[%emt 0:03:49]} Re8 {[%emt 0:02:46]} 13. h3 {[%emt 0:03:07]} b6 {[%emt 0:01:55]} 14. Nh2 {[%emt 0:02:12]} Ba6 {[%emt 0:15:25]} 15. Nd2 {[%emt 0:04:35]} Nf8 {[%emt 0:01:54]} 16. Ndf3 {[%emt 0:03:31]} Ne6 {[%emt 0:03:17]} 17. Ng4 {[%emt 0:06:32]} (17. Bh6 $11) 17... Rad8 {[%emt 0:10:01]} 18. Bh6 {[%emt 0:02:06]} Bh8 {[%emt 0:04:23]} 19. g3 {[%emt 0:07:00]} Bc8 {[%emt 0:04:24]} 20. Kg2 {[%emt 0:04:13]} Nd4 {[%emt 0:05:14]} 21. Nxd4 {[%emt 0:03:31]} cxd4 {[%emt 0:02:11]} 22. Bg5 {[%emt 0:08:07]} Rd6 {[%emt 0:03:46]} 23. f3 {[%emt 0:06:24]} Bg7 {[%emt 0:06:14]} 24. Nf2 {[%emt 0:04:02]} (24. f4 $11) 24... Bf6 {[%emt 0:06:19]} 25. Bxf6 {[%emt 0:03:48]} Rxf6 $11 {[%emt 0:00:24]} 26. Qh6 {[%emt 0:05:35]} Rd6 {[%emt 0:05:05]} 27. h4 {[%emt 0:03:17]} f6 {[%emt 0:02:12]} 28. h5 {[%emt 0:04:55]} Qg7 {[%emt 0:00:31]} 29. Qxg7+ {[%emt 0:00:44]} Kxg7 {[%emt 0:00:02]} 30. Rh1 {[%emt 0:02:27]} g5 {[%emt 0:01:41]} 31. g4 {[%emt 0:04:29]} h6 {[%emt 0:00:28]} 32. Nd1 {[%emt 0:01:00]} Be6 {[%emt 0:00:30]} 33. b3 {[%emt 0:01:34]} Ra8 {[%emt 0:00:53]} 34. Nb2 {[%emt 0:01:53]} b5 {[%emt 0:04:12]} 35. Ra3 {[%emt 0:02:59]} Rd7 {[%emt 0:00:00]} 36. Kf2 {[%emt 0:01:52]} b4 {[%emt 0:00:33]} 1/2-1/2